Workbook

Sheet SBB
B2: SBB Budget 2016-2017
B3: Item | C3: # of Unit | D3: Amount / Unit (Rs) | E3: Time (month) | F3: Recommended | G3: Requested | H3: 2016-17 Actual Funded
B4: A. Head Teacher’s Salary | C4: 1 | D4: 3000 | E4: 12 | F4: =C4*D4*E4 -> 36000 | G4: 28800 | H4: 36000
B5: Teacher’s Salary | C5: 9 | D5: 2500 | E5: 12 | F5: 270000 | G5: 243000 | H5: 270000
B6: Staff Salary | C6: 1 | D6: 2000 | E6: 12 | F6: 24000 | G6: 19200 | H6: 24000
B7: Cook | C7: 2 | D7: 1500 | E7: 12 | F7: 36000 | G7: 26400 | H7: 36000
B8: Education material | C8: 190 | D8: 300 | E8: 1 | F8: 57000 | G8: 57000 | H8: 57000
B9: Dress | C9: 190 | D9: 200 | E9: 1 | F9: 38000 | G9: 38000 | H9: 38000
B10: Meal | C10: 190 | D10: 10 | E10: 276 | F10: 524400 | G10: 560280 | H10: 524400
B11: Additional Nutrients | C11: 190 | D11: 6 | E11: 276 | F11: 314640 | H11: 104880 | I11: Partially approved see below
B12: Medicine | C12: 1 | D12: 300 | E12: 12 | F12: 3600 | G12: 3600 | H12: 3600
B13: Sanitation | C13: 1 | D13: 3000 | E13: 1 | F13: 3000 | G13: 3000 | H13: 3000
B14: Sports Equipments Sports, Annual programs & Function | C14: 1 | D14: 7500 | E14: 1 | F14: 7500 | G14: 7500 | H14: 7500
B15: TLM | C15: 1 | D15: 3000 | E15: 1 | F15: 3000 | G15: 3000 | H15: 3000
B16: Teacher's Orientation Training | C16: 1 | D16: 4000 | E16: 1 | F16: 4000 | G16: 4000 | H16: 4000
B17: Documentary, Office Expense Printing Stationary | C17: 1 | D17: 3000 | E17: 1 | F17: 3000 | G17: 3000 | H17: 3000
B18: News Paper | C18: 1 | D18: 1500 | E18: 1 | F18: 1500 | G18: 1500 | H18: 1500
B19: Social awareness & observation days | C19: 1 | D19: 5000 | E19: 1 | F19: 5000 | G19: 5000 | H19: 5000
B20: Creative activities | C20: 1 | D20: 7000 | E20: 1 | F20: 7000 | G20: 7000 | H20: 1543
G21: 48000
B22: Cost of 5 fans @ Rs. 1600 per fan with wiring and labor | C22: 1 | D22: 10500 | E22: 1 | F22: =C22*D22*E22 -> 10500 | H22: 10500
B23: Total Expenses | F23: =SUM(F4:F22) -> 1348140 | G23: =SUM(G4:G21) -> 1058280 | H23: =SUM(H4:H22) -> 1132923
B24: B. Local contribution Rs. 3 per child/month | C24: 190 | D24: 3 | E24: 12 | F24: =C24*D24*E24 -> 6840 | G24: 6840 | H24: 6840
B25: Guardians' Contribution | C25: 1 | D25: 22000 | E25: 1 | F25: =C25*D25*E25 -> 22000 | G25: 22000 | H25: 22000
B26: Contribution of 5 pair new benches | C26: 5 | D26: 3200 | F26: =D26*C26 -> 16000 | G26: 16000 | H26: 16000
B27: Contribution | F27: =SUM(F24:F26) -> 44840 | G27: =SUM(G24:G26) -> 44840 | H27: =SUM(H24:H26) -> 44840
B28: Asking from Asha | F28: =F23-F27 -> 1303300 | G28: =G23-G27 -> 1013440 | H28: =H23-H27 -> 1088083
B29: Actual Received from Asha | F29: 1088083 | G29: ( 2 days milk every week as additional nutrients)
B31: Adjusted/Changed from recommended | C31: Unit | D31: Amount/U | E31: Freq
B32: Additional (Milk 2 days) | C32: 190 | D32: 2 | E32: 276 | F32: =C32*D32*E32 -> 104880
B33: Creative activities (Reduced) | C33: 1 | D33: 1543 | E33: 1 | F33: =C33*D33*E33 -> 1543

Sheet SSB
A2: SSB Budget 2016-2017
A3: Item | B3: # of Unit | C3: Amount / Unit (Rs) | D3: Time (month) | E3: Recommended | F3: Requested | G3: 2016-17 Actual Funded
A4: A. Head Teacher's Salary | B4: 1 | C4: 3000 | D4: 12 | E4: =B4*C4*D4 -> 36000 | F4: 28800 | G4: 36000
A5: Teacher’s Salary | B5: 10 | C5: 2500 | D5: 12 | E5: =B5*C5*D5 -> 300000 | F5: 2,70,000 | G5: 300000
A6: Staff Salary | B6: 1 | C6: 2000 | D6: 12 | E6: 24000 | F6: 19200 | G6: 24000
A7: Cook | B7: 3 | C7: 1500 | D7: 12 | E7: 54000 | F7: 39600 | G7: 54000
A8: Education material | B8: 295 | C8: 300 | D8: 1 | E8: 88500 | F8: 73750 | G8: 88500
A9: Dress | B9: 295 | C9: 200 | D9: 1 | E9: 59000 | F9: 59000 | G9: 59000
A10: Meal | B10: 295 | C10: 10 | D10: 276 | E10: =B10*C10*D10 -> 814200 | F10: 855600 | G10: 814200
A11: Additional Nutrients | B11: 295 | C11: 6 | D11: 276 | E11: =B11*C11*D11 -> 488520 | G11: 162840 | H11: Partially approved see below
A12: Medicine | B12: 1 | C12: 3600 | D12: 1 | E12: 3600 | F12: 3600 | G12: 3600
A13: Sanitation | B13: 1 | C13: 3000 | D13: 1 | E13: 3000 | F13: 3000 | G13: 3000
A14: Sports Equipments Annual Sports & Function | B14: 1 | C14: 8000 | D14: 1 | E14: 8000 | F14: 8000 | G14: 8000
A15: TLM | B15: 1 | C15: 3300 | D15: 1 | E15: 3300 | F15: 3300 | G15: 3300
A16: Teacher's Orientation Training | B16: 1 | C16: 4000 | D16: 1 | E16: 4000 | F16: 4000 | G16: 4000
A17: Documentary, Office Expense & Printing Stationary | B17: 1 | C17: 3200 | D17: 1 | E17: 3200 | F17: 3200 | G17: 3200
A18: News Paper | B18: 1 | C18: 1500 | D18: 1 | E18: 1500 | F18: 1500 | G18: 1500
A19: Social awareness & observation days | B19: 1 | C19: 5000 | D19: 1 | E19: 5000 | F19: 5000 | G19: 5000
A20: Creative activities | B20: 1 | C20: 1543 | D20: 1 | E20: 7000 | F20: 7000 | G20: 1543
A21: Repair & Maintenance for furniture &School Building | B21: 1 | C21: 5000 | D21: 1 | E21: 5000 | F21: 5000 | G21: 5000
A22: Total Expenses | E22: =SUM(E4:E21) -> 1907820 | F22: 1389550 | G22: =SUM(G4:G21) -> 1576683
A23: B. Local contribution Rs. 3 per child per month & guardians' contribution | B23: 3 | C23: 295 | D23: 12 | E23: 10620 | F23: 10620 | G23: 10620
A24: Guardians' Contribution & Local Contribution | E24: 30000 | F24: 30000 | G24: 30000
E25: =SUM(E23:E24) -> 40620 | F25: =SUM(F23:F24) -> 40620 | G25: =SUM(G23:G24) -> 40620
A26: Asking from Asha (INR) | E26: =E22-E25 -> 1867200 | F26: =F22-F25 -> 1348930 | G26: =G22-G25 -> 1536063
A27: Actual Received from Asha | E27: 1536063 | F27: ( 2 days milk every week as additional nutrients)
A29: Adjusted/Changed from recommended | B29: Unit | C29: Amount/U | D29: Freq
A30: Additional (Milk 2 days) | B30: 295 | C30: 2 | D30: 276 | E30: =B30*C30*D30 -> 162840
A31: Creative activities (Reduced) | B31: 1 | C31: 1543 | D31: 1 | E31: =B31*C31*D31 -> 1543

Sheet Health
A2: Health Budget 2015-2016
A3: A. Hospital | B3: Unit | C3: Rate/Unit | E3: per month | G3: 2014-15 | H3: Total in 2014-15
A4: Doctor | B4: 1 | C4: 9000 | E4: 9000 | G4: 108000
A5: Travelling (doctor) | C5: 1000 | E5: 1000 | G5: 12000
G6: =SUM(G4:G5) -> 120000 | H6: 168900
A12: Health Budget 2016-2017
A13: A. Hospital | B13: Unit | C13: Rate | D13: Frequency | E13: Requested | F13: Recommended & Approved
A14: Doctor | B14: 1 | C14: 9000 | D14: 12 | E14: =B14*C14*D14 -> 108000 | F14: =E14 -> 108000
A15: Nurse Full Time | B15: 2 | C15: 1400 | D15: 12 | E15: =B15*C15*D15 -> 33600
A16: Nurse Part Time | B16: 1 | C16: 1000 | D16: 12 | E16: 12000
A17: Aya | B17: 2 | C17: 1000 | D17: 12 | E17: 24000
A18: Superintendent | B18: 1 | C18: 1600 | D18: 12 | E18: 19200
A19: Medicine | B19: 1 | C19: 6500 | D19: 12 | E19: 78000
A20: Travelling (staff) | B20: 1 | C20: 300 | D20: 12 | E20: 3600
A21: Travelling Doctor | B21: 1 | C21: 1000 | D21: 12 | E21: 12000 | F21: =E21 -> 12000
A22: Office & Printing Expense | B22: 1 | C22: 3600 | D22: 1 | E22: 3600
A23: Instrument (repairing ) | B23: 1 | C23: 8000 | D23: 1 | E23: 8000
A24: Training on Health, Hygiene, Nutrition for health | B24: 1 | C24: 6000 | D24: 1 | E24: 6000
A25: Total Expense | E25: =SUM(E14:E24) -> 308000
A26: Income from hospital
A27: Patient Fees | E27: 74000
A28: Operation Charge | E28: 39500
A29: Ambulance Service | E29: 31000
A30: Total Expense | E30: =SUM(E27:E29) -> 144500
A31: Asking from Asha | B31: (A-B) | E31: =E25-E30 -> 163500 | F31: =SUM(F14:F30) -> 120000
A32: Actual Received from Asha | E32: 120000

Sheet Special
D1: Budget for 19 Special Children (All Residential, 11 boys, 8 girls) 2016-17
D2: Items | E2: Unit/No.s | F2: Expense per unit | G2: Time(months) | H2: Requested | I2: Recommended & Approved
D3: Supervisor cum teacher | E3: 1 | F3: 1000 | G3: 12 | H3: 12000 | I3: =E3*F3*G3 -> 12000
D4: Computer Teacher | E4: 1 | F4: 1500 | G4: 12 | H4: 18000 | I4: =E4*F4*G4 -> 18000
D5: Food | E5: 19 | F5: 900 | G5: 12 | H5: 205200 | I5: 205200
D6: Education | E6: 19 | F6: 300 | G6: 1 | H6: 5700 | I6: 5700
D7: Clothing | E7: 19 | F7: 500 | G7: 1 | H7: 9500 | I7: 9500
D8: Toiletries | E8: 19 | F8: 100 | G8: 1 | H8: 1900 | I8: 1900
D9: Bedding | E9: 19 | F9: 200 | G9: 1 | H9: 3800 | I9: 3800
D10: Sports program | E10: 1 | F10: 1600 | G10: 1 | H10: 1600 | I10: 1600
D11: Creative activities | E11: 1 | F11: 1800 | G11: 1 | H11: 1800 | I11: 1800
D12: Total | E12: 1 | F12: 1 | G12: 1 | H12: 259500 | I12: =SUM(I3:I11) -> 259500
D13: B. Local Contribution | E13: 1 | F13: 3500 | G13: 1 | H13: 3500 | I13: 3500
D14: Asking from Asha (INR) | H14: 256000 | I14: =I12-I13 -> 256000
D15: Actual Received from Asha | H15: 256000

Sheet Overall
A2: Project | B2: Amount Requested | C2: 2016-17 Amount Recommended | D2: 2016-17 Recommended without Additional Nutrition | E2: 2016-17 Approved | F2: 2015-16 Approved
A3: SBB | B3: 1013440 | C3: 1303300 | D3: 988660 | E3: 1088083 | F3: 1008530
A4: SSB | B4: 1348930 | C4: 1867200 | D4: 1378680 | E4: 1536063 | F4: 1339675
A5: Health | B5: 163500 | C5: 120000 | D5: 120000 | E5: 120000 | F5: 120000
A6: Special | B6: 256000 | C6: 256000 | D6: 256000 | E6: 256000 | F6: 259200
A7: Total (Rs) | B7: =SUM(B3:B6) -> 2781870 | C7: =SUM(C3:C6) -> 3546500 | D7: =SUM(D3:D6) -> 2743340 | E7: =SUM(E3:E6) -> 3000146 | F7: =SUM(F3:F6) -> 2727405
